[Event "Late-Titled-Tuesday-Blitz-April-02-2024"]
[Site "Chess.com"]
[Date "2024.04.02"]
[Round "1"]
[White "FabianoCaruana"]
[Black "vladoboch"]
[Result "1-0"]
[WhiteElo "3087"]
[BlackElo "2542"]
[TimeControl "180+1"]
[EndTime "14:05:34 PDT"]
[Termination "FabianoCaruana won by resignation"]

1. c3 {[%clk 0:03:00.9]} 1... d5 {[%clk 0:02:56]} 2. Nf3 {[%clk 0:03:00.3]} 2...
Nc6 {[%clk 0:02:55.5]} 3. d4 {[%clk 0:03:00.6]} 3... Bg4 {[%clk 0:02:54.9]} 4.
Bf4 {[%clk 0:03:00.9]} 4... e6 {[%clk 0:02:53.1]} 5. Nbd2 {[%clk 0:03:00.2]}
5... Bd6 {[%clk 0:02:52.4]} 6. Bg3 {[%clk 0:02:59.4]} 6... Nf6 {[%clk 0:02:50]}
7. e3 {[%clk 0:02:59.3]} 7... O-O {[%clk 0:02:43.7]} 8. Bd3 {[%clk 0:02:58.9]}
8... e5 {[%clk 0:02:32.5]} 9. Be2 {[%clk 0:02:52.2]} 9... e4 {[%clk 0:02:29.2]}
10. Ng1 {[%clk 0:02:49.7]} 10... Bxe2 {[%clk 0:02:27.9]} 11. Nxe2 {[%clk
0:02:50.6]} 11... Ne7 {[%clk 0:02:26.8]} 12. c4 {[%clk 0:02:47.6]} 12... c6
{[%clk 0:02:26.8]} 13. Bh4 {[%clk 0:02:41.9]} 13... Nf5 {[%clk 0:02:20.8]} 14.
Bxf6 {[%clk 0:02:41.4]} 14... Qxf6 {[%clk 0:02:20.1]} 15. Nc3 {[%clk 0:02:41.3]}
15... Qg5 {[%clk 0:02:03.4]} 16. g3 {[%clk 0:02:39.5]} 16... Ne7 {[%clk
0:01:51.5]} 17. h4 {[%clk 0:02:35.6]} 17... Qf5 {[%clk 0:01:46.5]} 18. Qe2
{[%clk 0:02:33.4]} 18... h5 {[%clk 0:01:40]} 19. O-O-O {[%clk 0:02:33.3]} 19...
b5 {[%clk 0:01:07.4]} 20. c5 {[%clk 0:02:28.4]} 20... Bc7 {[%clk 0:01:06.4]} 21.
Rdg1 {[%clk 0:02:29]} 21... Qg4 {[%clk 0:01:01.6]} 22. Kc2 {[%clk 0:02:16.9]}
22... a5 {[%clk 0:01:00.3]} 23. Qd1 {[%clk 0:02:01.3]} 23... a4 {[%clk
0:00:58.6]} 24. a3 {[%clk 0:02:00.9]} 24... Nf5 {[%clk 0:00:52.9]} 25. Na2
{[%clk 0:01:56.1]} 25... Nh6 {[%clk 0:00:52.2]} 26. Nb4 {[%clk 0:01:51.9]} 26...
Qe6 {[%clk 0:00:49.1]} 27. Qxh5 {[%clk 0:01:37.7]} 27... Ng4 {[%clk 0:00:44.9]}
28. Nxc6 {[%clk 0:01:38.3]} 28... Nxf2 {[%clk 0:00:35.4]} 29. Qxd5 {[%clk
0:01:36.3]} 29... Nxh1 {[%clk 0:00:26.2]} 30. Rxh1 {[%clk 0:01:33.7]} 30... Bxg3
{[%clk 0:00:24.5]} 31. Nxe4 {[%clk 0:01:30.4]} 31... Qxd5 {[%clk 0:00:22.6]} 32.
Ne7+ {[%clk 0:01:30]} 32... Kh8 {[%clk 0:00:21.9]} 33. Nxd5 {[%clk 0:01:30.9]}
33... Rae8 {[%clk 0:00:20.9]} 34. Nxg3 {[%clk 0:01:30.2]} 1-0

[Event "Late-Titled-Tuesday-Blitz-April-02-2024"]
[Site "Chess.com"]
[Date "2024.04.02"]
[Round "1"]
[White "PelinGorki"]
[Black "Hikaru"]
[Result "0-1"]
[WhiteElo "2547"]
[BlackElo "3264"]
[TimeControl "180+1"]
[EndTime "14:05:37 PDT"]
[Termination "Hikaru won by resignation"]

1. e4 {[%clk 0:02:59.5]} 1... a6 {[%clk 0:02:48]} 2. d4 {[%clk 0:02:52.8]} 2...
e6 {[%clk 0:02:46.3]} 3. Nc3 {[%clk 0:02:48.9]} 3... d5 {[%clk 0:02:46.5]} 4. e5
{[%clk 0:02:47.8]} 4... c5 {[%clk 0:02:44.1]} 5. f4 {[%clk 0:02:47.2]} 5... cxd4
{[%clk 0:02:43.8]} 6. Qxd4 {[%clk 0:02:47.1]} 6... Nc6 {[%clk 0:02:43.6]} 7. Qd1
{[%clk 0:02:47.2]} 7... Bc5 {[%clk 0:02:43.2]} 8. Nf3 {[%clk 0:02:46.6]} 8...
Nh6 {[%clk 0:02:42]} 9. Bd3 {[%clk 0:02:46.2]} 9... Ng4 {[%clk 0:02:42.2]} 10.
Rf1 {[%clk 0:02:38.9]} 10... Nxh2 {[%clk 0:02:39.5]} 11. Rh1 {[%clk 0:02:12.2]}
11... Nxf3+ {[%clk 0:02:38.1]} 12. Qxf3 {[%clk 0:02:11.9]} 12... h6 {[%clk
0:02:38.6]} 13. Bd2 {[%clk 0:02:06.7]} 13... Nb4 {[%clk 0:02:38.2]} 14. O-O-O
{[%clk 0:02:03.6]} 14... Bd7 {[%clk 0:02:37.7]} 15. a3 {[%clk 0:02:01.1]} 15...
Nxd3+ {[%clk 0:02:37.8]} 16. Qxd3 {[%clk 0:02:01.9]} 16... Rc8 {[%clk
0:02:37.7]} 17. g4 {[%clk 0:01:59.4]} 17... Qb6 {[%clk 0:02:32.2]} 18. g5 {[%clk
0:01:55.2]} 18... Bd4 {[%clk 0:02:24.3]} 19. f5 {[%clk 0:01:44.2]} 19... exf5
{[%clk 0:02:18]} 20. gxh6 {[%clk 0:01:39]} 20... gxh6 {[%clk 0:02:16.3]} 21.
Rde1 {[%clk 0:01:16.8]} 21... Be6 {[%clk 0:02:14.6]} 22. Rxh6 {[%clk 0:00:59.7]}
22... Rxh6 {[%clk 0:02:13.9]} 23. Bxh6 {[%clk 0:01:00.6]} 23... Bxc3 {[%clk
0:02:14.1]} 24. bxc3 {[%clk 0:01:01.4]} 24... Qa5 {[%clk 0:02:10.8]} 25. Kd2
{[%clk 0:00:41.3]} 25... d4 {[%clk 0:02:09.5]} 26. Rg1 {[%clk 0:00:33.9]} 26...
Qxc3+ {[%clk 0:02:07.5]} 27. Qxc3 {[%clk 0:00:31.9]} 27... Rxc3 {[%clk
0:02:07.4]} 28. Rg8+ {[%clk 0:00:26.5]} 28... Kd7 {[%clk 0:02:05.7]} 29. Bf8
{[%clk 0:00:27.4]} 29... f4 {[%clk 0:02:02.7]} 30. Rg1 {[%clk 0:00:18.8]} 30...
Bf5 {[%clk 0:02:02]} 31. Rc1 {[%clk 0:00:15.1]} 31... f3 {[%clk 0:02:02]} 32.
Bb4 {[%clk 0:00:14.3]} 32... Rxc2+ {[%clk 0:01:58.4]} 33. Rxc2 {[%clk
0:00:14.3]} 33... Bxc2 {[%clk 0:01:59.3]} 34. Bc5 {[%clk 0:00:11.6]} 34... d3
{[%clk 0:01:55.9]} 35. Bd4 {[%clk 0:00:08]} 35... Ke6 {[%clk 0:01:54.8]} 36. Ke3
{[%clk 0:00:08]} 36... f2 {[%clk 0:01:53.7]} 0-1

[Event "Late-Titled-Tuesday-Blitz-April-02-2024"]
[Site "Chess.com"]
[Date "2024.04.02"]
[Round "1"]
[White "XDPS"]
[Black "Viktoker"]
[Result "1-0"]
[WhiteElo "2931"]
[BlackElo "2505"]
[TimeControl "180+1"]
[EndTime "14:05:38 PDT"]
[Termination "XDPS won by resignation"]

1. d4 {[%clk 0:03:00.9]} 1... d5 {[%clk 0:02:55]} 2. Bf4 {[%clk 0:02:55.5]} 2...
Nf6 {[%clk 0:02:53.6]} 3. e3 {[%clk 0:02:54.9]} 3... e6 {[%clk 0:02:53]} 4. Nf3
{[%clk 0:02:54.3]} 4... c5 {[%clk 0:02:52]} 5. Nbd2 {[%clk 0:02:53.3]} 5... Nc6
{[%clk 0:02:49.9]} 6. c3 {[%clk 0:02:53.6]} 6... cxd4 {[%clk 0:02:46.4]} 7. exd4
{[%clk 0:02:53.6]} 7... Nh5 {[%clk 0:02:46.7]} 8. Be3 {[%clk 0:02:54]} 8... Bd6
{[%clk 0:02:46.3]} 9. g3 {[%clk 0:02:54.5]} 9... Bd7 {[%clk 0:02:37]} 10. Ne5
{[%clk 0:02:50.9]} 10... Nf6 {[%clk 0:02:36.1]} 11. f4 {[%clk 0:02:47]} 11...
Rc8 {[%clk 0:02:32.3]} 12. Bd3 {[%clk 0:02:39.2]} 12... Qb6 {[%clk 0:02:30.9]}
13. Qb3 {[%clk 0:02:28.7]} 13... Ng8 {[%clk 0:02:23.8]} 14. O-O {[%clk
0:01:50.5]} 14... Nge7 {[%clk 0:02:21.6]} 15. Rae1 {[%clk 0:01:47.7]} 15... Na5
{[%clk 0:02:00.3]} 16. Qxb6 {[%clk 0:01:41.8]} 16... axb6 {[%clk 0:02:01.2]} 17.
Nxd7 {[%clk 0:01:42.5]} 17... Kxd7 {[%clk 0:02:00.9]} 18. f5 {[%clk 0:01:39.8]}
18... g6 {[%clk 0:01:53.7]} 19. fxe6+ {[%clk 0:01:39.6]} 19... fxe6 {[%clk
0:01:54.6]} 20. Rf7 {[%clk 0:01:38.7]} 20... Rcf8 {[%clk 0:01:51.6]} 21. Ref1
{[%clk 0:01:26.2]} 21... Rxf7 {[%clk 0:01:51.3]} 22. Rxf7 {[%clk 0:01:27.1]}
22... Ke8 {[%clk 0:01:50.7]} 23. Rf6 {[%clk 0:01:26.5]} 23... Kd7 {[%clk
0:01:48.7]} 24. Nf3 {[%clk 0:01:18.7]} 24... Nf5 {[%clk 0:01:44.4]} 25. Bg5
{[%clk 0:01:12.5]} 25... Nc4 {[%clk 0:01:29.5]} 26. Rf7+ {[%clk 0:01:08.6]}
26... Kc6 {[%clk 0:01:29.3]} 27. b3 {[%clk 0:01:01.3]} 27... Nb2 {[%clk
0:01:11]} 28. Be2 {[%clk 0:01:00.5]} 28... Ra8 {[%clk 0:01:10.1]} 29. a4 {[%clk
0:01:00]} 29... Nxa4 {[%clk 0:01:07.8]} 30. bxa4 {[%clk 0:00:59.7]} 30... Rxa4
{[%clk 0:01:08.7]} 31. g4 {[%clk 0:00:50.1]} 31... h6 {[%clk 0:01:05.2]} 32.
gxf5 {[%clk 0:00:48.1]} 32... hxg5 {[%clk 0:01:05.7]} 33. fxg6 {[%clk
0:00:47.7]} 1-0

[Event "Late-Titled-Tuesday-Blitz-April-02-2024"]
[Site "Chess.com"]
[Date "2024.04.02"]
[Round "1"]
[White "JaackCamel"]
[Black "DirtyKabab"]
[Result "0-1"]
[WhiteElo "2192"]
[BlackElo "2578"]
[TimeControl "180+1"]
[EndTime "14:05:39 PDT"]
[Termination "DirtyKabab won by resignation"]

1. d4 {[%clk 0:02:59.6]} 1... Nf6 {[%clk 0:02:59.7]} 2. c4 {[%clk 0:02:58.8]}
2... e6 {[%clk 0:02:59.5]} 3. Nc3 {[%clk 0:02:58.2]} 3... Bb4 {[%clk 0:02:59.3]}
4. Qc2 {[%clk 0:02:57.9]} 4... d5 {[%clk 0:02:59]} 5. Nf3 {[%clk 0:02:51.4]}
5... O-O {[%clk 0:02:53.9]} 6. Bg5 {[%clk 0:02:50.1]} 6... dxc4 {[%clk
0:02:46.6]} 7. e3 {[%clk 0:02:46.9]} 7... b5 {[%clk 0:02:40.5]} 8. Be2 {[%clk
0:02:42.7]} 8... Bb7 {[%clk 0:02:36.2]} 9. O-O {[%clk 0:02:42.5]} 9... a6 {[%clk
0:02:35.8]} 10. a4 {[%clk 0:02:41.2]} 10... Bxc3 {[%clk 0:02:11.4]} 11. bxc3
{[%clk 0:02:39.4]} 11... Nbd7 {[%clk 0:02:09.7]} 12. Rfb1 {[%clk 0:02:38]} 12...
Be4 {[%clk 0:02:04.4]} 13. Bxf6 {[%clk 0:02:24.7]} 13... Nxf6 {[%clk 0:02:03.3]}
14. Qa2 {[%clk 0:02:20.2]} 14... Bxb1 {[%clk 0:02:02.6]} 15. Rxb1 {[%clk
0:02:15.9]} 15... Nd5 {[%clk 0:01:56.9]} 16. Qd2 {[%clk 0:02:13.1]} 16... Rb8
{[%clk 0:01:53.6]} 17. Ne5 {[%clk 0:02:11]} 17... Qd6 {[%clk 0:01:50.7]} 18. e4
{[%clk 0:02:10.2]} 18... Ne7 {[%clk 0:01:48.8]} 19. axb5 {[%clk 0:02:07.2]}
19... axb5 {[%clk 0:01:48.1]} 20. f4 {[%clk 0:02:07.3]} 20... f6 {[%clk
0:01:42.6]} 21. Nf3 {[%clk 0:02:01]} 21... c5 {[%clk 0:01:33.6]} 22. Re1 {[%clk
0:01:55.5]} 22... Rfd8 {[%clk 0:01:29.4]} 23. Qe3 {[%clk 0:01:52.1]} 23... cxd4
{[%clk 0:01:28.7]} 24. cxd4 {[%clk 0:01:51.6]} 24... f5 {[%clk 0:01:26.3]} 25.
Rd1 {[%clk 0:01:41.4]} 25... fxe4 {[%clk 0:01:22.7]} 26. Ng5 {[%clk 0:01:26.9]}
26... Nf5 {[%clk 0:01:15]} 27. Qh3 {[%clk 0:01:25.3]} 27... h6 {[%clk
0:01:13.6]} 28. Nxe4 {[%clk 0:01:24.7]} 28... Qxf4 {[%clk 0:01:13]} 29. Bf3
{[%clk 0:01:10.3]} 29... Rxd4 {[%clk 0:01:04.8]} 30. Rf1 {[%clk 0:01:09.6]}
30... Rxe4 {[%clk 0:01:02.9]} 31. Bxe4 {[%clk 0:01:01.8]} 31... Qxe4 {[%clk
0:01:03.8]} 32. Kh1 {[%clk 0:00:52.8]} 32... b4 {[%clk 0:01:00.1]} 0-1

[Event "Late-Titled-Tuesday-Blitz-April-02-2024"]
[Site "Chess.com"]
[Date "2024.04.02"]
[Round "1"]
[White "mishanick"]
[Black "ImportedItalianMaple"]
[Result "1-0"]
[WhiteElo "3027"]
[BlackElo "2525"]
[TimeControl "180+1"]
[EndTime "14:05:42 PDT"]
[Termination "mishanick won by resignation"]

1. c4 {[%clk 0:02:56.5]} 1... g6 {[%clk 0:02:59.5]} 2. Nc3 {[%clk 0:02:56.4]}
2... Bg7 {[%clk 0:02:59.7]} 3. Nf3 {[%clk 0:02:56.7]} 3... d6 {[%clk 0:02:55.8]}
4. d4 {[%clk 0:02:57.1]} 4... c5 {[%clk 0:02:55.6]} 5. e3 {[%clk 0:02:55.5]}
5... Nc6 {[%clk 0:02:49]} 6. Be2 {[%clk 0:02:55]} 6... cxd4 {[%clk 0:02:44.1]}
7. exd4 {[%clk 0:02:55.9]} 7... e5 {[%clk 0:02:39.2]} 8. Be3 {[%clk 0:02:46.7]}
8... Bg4 {[%clk 0:02:34.7]} 9. d5 {[%clk 0:02:42.2]} 9... Bxf3 {[%clk
0:02:32.3]} 10. Bxf3 {[%clk 0:02:40.5]} 10... Nd4 {[%clk 0:02:31.6]} 11. O-O
{[%clk 0:02:35.1]} 11... Nxf3+ {[%clk 0:02:30.4]} 12. Qxf3 {[%clk 0:02:34.5]}
12... Ne7 {[%clk 0:02:30.1]} 13. c5 {[%clk 0:02:34.5]} 13... O-O {[%clk
0:02:25.9]} 14. Rad1 {[%clk 0:02:30]} 14... Nf5 {[%clk 0:02:24.5]} 15. cxd6
{[%clk 0:02:29.1]} 15... Qxd6 {[%clk 0:02:21]} 16. Ne4 {[%clk 0:02:28.6]} 16...
Qd8 {[%clk 0:02:21.2]} 17. Bc5 {[%clk 0:02:28.2]} 17... Re8 {[%clk 0:02:19.5]}
18. d6 {[%clk 0:02:28.1]} 18... Nd4 {[%clk 0:02:12.5]} 19. Qd3 {[%clk
0:02:21.5]} 19... b6 {[%clk 0:02:04.8]} 20. Ba3 {[%clk 0:02:17.3]} 20... Qd7
{[%clk 0:02:04.2]} 21. f4 {[%clk 0:02:15]} 21... exf4 {[%clk 0:01:58.9]} 22.
Rxf4 {[%clk 0:02:14.4]} 22... f5 {[%clk 0:01:54.6]} 23. Nc3 {[%clk 0:02:08.4]}
23... Ne6 {[%clk 0:01:35.5]} 24. Rff1 {[%clk 0:02:04.7]} 24... Nc5 {[%clk
0:01:24]} 25. Qc4+ {[%clk 0:02:02.2]} 25... Qe6 {[%clk 0:01:18.3]} 26. Qxe6+
{[%clk 0:02:00]} 26... Rxe6 {[%clk 0:01:19.1]} 27. Nb5 {[%clk 0:01:58]} 27...
Re2 {[%clk 0:01:11.5]} 28. Rfe1 {[%clk 0:01:51.3]} 28... Rxe1+ {[%clk
0:00:59.8]} 29. Rxe1 {[%clk 0:01:52.2]} 29... Ne4 {[%clk 0:00:59.9]} 30. Nc7
{[%clk 0:01:46.6]} 30... Rd8 {[%clk 0:00:57.7]} 31. Ne6 {[%clk 0:01:46.7]} 31...
Rd7 {[%clk 0:00:57.3]} 32. Rc1 {[%clk 0:01:44.3]} 32... Be5 {[%clk 0:00:37.4]}
33. Rc7 {[%clk 0:01:29.9]} 33... Kf7 {[%clk 0:00:22]} 34. Rxd7+ {[%clk
0:01:27.4]} 34... Kxe6 {[%clk 0:00:22.7]} 35. Re7+ {[%clk 0:01:27.9]} 35... Kf6
{[%clk 0:00:21.9]} 36. Rxe5 {[%clk 0:01:26.7]} 1-0

[Event "Late-Titled-Tuesday-Blitz-April-02-2024"]
[Site "Chess.com"]
[Date "2024.04.02"]
[Round "1"]
[White "AGW2016"]
[Black "Indefatigable11"]
[Result "1-0"]
[WhiteElo "2556"]
[BlackElo "2030"]
[TimeControl "180+1"]
[EndTime "14:05:49 PDT"]
[Termination "AGW2016 won by resignation"]

1. d4 {[%clk 0:02:54.9]} 1... Nf6 {[%clk 0:02:59.2]} 2. Nc3 {[%clk 0:02:54.6]}
2... e6 {[%clk 0:02:59.9]} 3. Bf4 {[%clk 0:02:54.9]} 3... d5 {[%clk 0:03:00]} 4.
e3 {[%clk 0:02:48]} 4... Be7 {[%clk 0:02:57.9]} 5. g4 {[%clk 0:02:46.1]} 5... c5
{[%clk 0:02:52.7]} 6. Nb5 {[%clk 0:02:45.8]} 6... Na6 {[%clk 0:02:52]} 7. c3
{[%clk 0:02:45.7]} 7... O-O {[%clk 0:02:50.9]} 8. g5 {[%clk 0:02:45.1]} 8... Ne8
{[%clk 0:02:50.3]} 9. h4 {[%clk 0:02:45.5]} 9... Bd7 {[%clk 0:02:49.4]} 10. a4
{[%clk 0:02:45.5]} 10... Bxb5 {[%clk 0:02:46.4]} 11. axb5 {[%clk 0:02:45.1]}
11... Nac7 {[%clk 0:02:47.1]} 12. Nf3 {[%clk 0:02:45]} 12... Bd6 {[%clk
0:02:46.6]} 13. Ne5 {[%clk 0:02:39.6]} 13... cxd4 {[%clk 0:02:43]} 14. exd4
{[%clk 0:02:38.3]} 14... f6 {[%clk 0:02:37.9]} 15. gxf6 {[%clk 0:02:37.3]} 15...
Nxf6 {[%clk 0:02:38.1]} 16. Bd3 {[%clk 0:02:33]} 16... Ne4 {[%clk 0:02:35.1]}
17. Bxe4 {[%clk 0:02:31.4]} 17... dxe4 {[%clk 0:02:35.9]} 18. Bg3 {[%clk
0:02:31.9]} 18... Nxb5 {[%clk 0:02:32.9]} 19. Qe2 {[%clk 0:02:32.4]} 19... Nc7
{[%clk 0:02:30.2]} 20. Qxe4 {[%clk 0:02:31.6]} 20... Nd5 {[%clk 0:02:26.9]} 21.
h5 {[%clk 0:02:20.1]} 21... Qg5 {[%clk 0:02:08.7]} 22. h6 {[%clk 0:02:10.9]}
22... g6 {[%clk 0:02:05.1]} 23. Kd1 {[%clk 0:02:09]} 23... Bxe5 {[%clk
0:01:59.1]} 24. Qxe5 {[%clk 0:02:07.6]} 24... Qxe5 {[%clk 0:01:57.4]} 25. dxe5
{[%clk 0:02:03]} 25... Rad8 {[%clk 0:01:56.7]} 26. Kc2 {[%clk 0:02:03]} 26... a6
{[%clk 0:01:54.8]} 27. Rad1 {[%clk 0:02:02.6]} 27... Ne7 {[%clk 0:01:52.9]} 28.
Rd6 {[%clk 0:02:01.6]} 28... Nf5 {[%clk 0:01:47.3]} 29. Rxe6 {[%clk 0:02:01.8]}
29... Nxg3 {[%clk 0:01:47.4]} 30. fxg3 {[%clk 0:02:02.5]} 30... Rf2+ {[%clk
0:01:47.4]} 31. Kb3 {[%clk 0:02:01.3]} 31... Rdd2 {[%clk 0:01:47.2]} 32. Rb1
{[%clk 0:02:01.5]} 32... Kf7 {[%clk 0:01:45.3]} 33. Rb6 {[%clk 0:02:01.6]} 33...
Rd5 {[%clk 0:01:39.2]} 34. Rxb7+ {[%clk 0:02:01.7]} 34... Kg8 {[%clk 0:01:38.7]}
35. Re1 {[%clk 0:01:59]} 35... Rf7 {[%clk 0:01:35.3]} 36. Rb8+ {[%clk
0:01:55.8]} 36... Rf8 {[%clk 0:01:35.2]} 37. Rb6 {[%clk 0:01:56]} 37... a5
{[%clk 0:01:32.8]} 38. e6 {[%clk 0:01:54.3]} 38... Re8 {[%clk 0:01:32.8]} 39.
Kc4 {[%clk 0:01:53]} 39... Rh5 {[%clk 0:01:31.9]} 40. Rb5 {[%clk 0:01:52.5]}
40... Rxh6 {[%clk 0:01:31.3]} 41. Rxa5 {[%clk 0:01:53]} 41... Rh2 {[%clk
0:01:29.8]} 42. b4 {[%clk 0:01:52.9]} 42... h5 {[%clk 0:01:26.7]} 43. Rd5 {[%clk
0:01:51.2]} 43... Rg2 {[%clk 0:01:26.2]} 44. Re3 {[%clk 0:01:51.1]} 44... Kg7
{[%clk 0:01:24.5]} 45. b5 {[%clk 0:01:51.6]} 45... Kf6 {[%clk 0:01:23.7]} 46. b6
{[%clk 0:01:52]} 46... g5 {[%clk 0:01:22]} 47. b7 {[%clk 0:01:52]} 47... h4
{[%clk 0:01:20.6]} 48. gxh4 {[%clk 0:01:51.8]} 48... gxh4 {[%clk 0:01:20.5]} 49.
e7 {[%clk 0:01:52.5]} 49... Rb2 {[%clk 0:01:15]} 50. Rd8 {[%clk 0:01:52.6]}
50... Kf7 {[%clk 0:01:11.8]} 51. Rc8 {[%clk 0:01:42.4]} 51... Rxb7 {[%clk
0:00:41.3]} 52. Rf3+ {[%clk 0:01:42.5]} 52... Kxe7 {[%clk 0:00:40.9]} 53. Re3+
{[%clk 0:01:42.9]} 53... Kd7 {[%clk 0:00:41.4]} 54. Rcxe8 {[%clk 0:01:43.1]}
54... h3 {[%clk 0:00:40.9]} 55. R8e7+ {[%clk 0:01:42.9]} 55... Kc8 {[%clk
0:00:41]} 56. Rxb7 {[%clk 0:01:43.8]} 56... Kxb7 {[%clk 0:00:39.4]} 57. Rxh3
{[%clk 0:01:44.4]} 1-0

[Event "Late-Titled-Tuesday-Blitz-April-02-2024"]
[Site "Chess.com"]
[Date "2024.04.02"]
[Round "1"]
[White "chucksterf10"]
[Black "smotherhubbard"]
[Result "1-0"]
[WhiteElo "2652"]
[BlackElo "2358"]
[TimeControl "180+1"]
[EndTime "14:05:52 PDT"]
[Termination "chucksterf10 won by resignation"]

1. Nf3 {[%clk 0:03:00.9]} 1... Nf6 {[%clk 0:02:59.6]} 2. Nc3 {[%clk 0:03:00.8]}
2... d5 {[%clk 0:02:56.9]} 3. d4 {[%clk 0:03:01]} 3... c5 {[%clk 0:02:55.6]} 4.
e3 {[%clk 0:02:56.4]} 4... Bf5 {[%clk 0:02:52.9]} 5. Bb5+ {[%clk 0:02:55]} 5...
Nbd7 {[%clk 0:02:51.1]} 6. dxc5 {[%clk 0:02:51.8]} 6... e6 {[%clk 0:02:51.1]} 7.
Nd4 {[%clk 0:02:40.8]} 7... Bg6 {[%clk 0:02:29.7]} 8. c6 {[%clk 0:02:40.7]} 8...
bxc6 {[%clk 0:02:27.9]} 9. Bxc6 {[%clk 0:02:39]} 9... Rc8 {[%clk 0:02:26.4]} 10.
O-O {[%clk 0:02:34.5]} 10... Bb4 {[%clk 0:02:24.9]} 11. Ncb5 {[%clk 0:02:29.8]}
11... a6 {[%clk 0:02:17.7]} 12. Bd2 {[%clk 0:02:20.5]} 12... Qe7 {[%clk
0:01:47.4]} 13. Bxb4 {[%clk 0:01:52.4]} 13... Qxb4 {[%clk 0:01:48.3]} 14. Qe1
{[%clk 0:01:52.6]} 14... Qe7 {[%clk 0:01:22]} 15. Bb7 {[%clk 0:01:50.8]} 15...
Rc5 {[%clk 0:01:09.5]} 16. Nc6 {[%clk 0:01:44.9]} 16... Rxc6 {[%clk 0:01:06.9]}
17. Bxc6 {[%clk 0:01:38.9]} 17... axb5 {[%clk 0:01:04.5]} 18. Bxb5 {[%clk
0:01:39.4]} 18... O-O {[%clk 0:01:00.3]} 19. c3 {[%clk 0:01:39]} 19... Nc5
{[%clk 0:00:56.8]} 20. Qe2 {[%clk 0:01:36.8]} 20... Rb8 {[%clk 0:00:54.2]} 21.
a4 {[%clk 0:01:36.7]} 21... Nfe4 {[%clk 0:00:49.7]} 22. b4 {[%clk 0:01:30.3]}
22... Nxc3 {[%clk 0:00:48.5]} 23. Qb2 {[%clk 0:01:29.4]} 23... N5e4 {[%clk
0:00:41.7]} 24. f3 {[%clk 0:01:24.6]} 24... Nxb5 {[%clk 0:00:34.7]} 25. fxe4
{[%clk 0:01:24.7]} 25... Nc7 {[%clk 0:00:31.4]} 26. exd5 {[%clk 0:01:17.3]}
26... Nxd5 {[%clk 0:00:29.4]} 27. b5 {[%clk 0:01:16.9]} 27... Nxe3 {[%clk
0:00:27.3]} 28. Rfc1 {[%clk 0:01:17.6]} 28... Be4 {[%clk 0:00:22.9]} 29. Qd4
{[%clk 0:01:08.2]} 29... Qg5 {[%clk 0:00:22.2]} 30. Qxe4 {[%clk 0:01:07.2]} 1-0

[Event "Late-Titled-Tuesday-Blitz-April-02-2024"]
[Site "Chess.com"]
[Date "2024.04.02"]
[Round "1"]
[White "moro182"]
[Black "LastHeroJr"]
[Result "1-0"]
[WhiteElo "2894"]
[BlackElo "2488"]
[TimeControl "180+1"]
[EndTime "14:05:55 PDT"]
[Termination "moro182 won by checkmate"]

1. d4 {[%clk 0:03:00.9]} 1... d5 {[%clk 0:01:47.8]} 2. Bf4 {[%clk 0:02:59.8]}
2... c6 {[%clk 0:01:48.2]} 3. e3 {[%clk 0:02:59.1]} 3... Nf6 {[%clk 0:01:49.1]}
4. Nf3 {[%clk 0:02:57.4]} 4... Bg4 {[%clk 0:01:48.8]} 5. c4 {[%clk 0:02:57.1]}
5... e6 {[%clk 0:01:48.7]} 6. Nc3 {[%clk 0:02:56.6]} 6... Nbd7 {[%clk 0:01:49]}
7. Qb3 {[%clk 0:02:55.1]} 7... Qb6 {[%clk 0:01:48.9]} 8. c5 {[%clk 0:02:55.1]}
8... Qxb3 {[%clk 0:01:48.7]} 9. axb3 {[%clk 0:02:56]} 9... Bxf3 {[%clk
0:01:47.9]} 10. gxf3 {[%clk 0:02:55.2]} 10... Nh5 {[%clk 0:01:48]} 11. Bg3
{[%clk 0:02:41.9]} 11... a6 {[%clk 0:01:48]} 12. f4 {[%clk 0:02:29.3]} 12... Rc8
{[%clk 0:01:47.2]} 13. Be2 {[%clk 0:02:27.5]} 13... Nhf6 {[%clk 0:01:47.4]} 14.
h3 {[%clk 0:02:21.9]} 14... h5 {[%clk 0:01:47.5]} 15. Rg1 {[%clk 0:02:07.1]}
15... h4 {[%clk 0:01:47.1]} 16. Bh2 {[%clk 0:02:07.2]} 16... g6 {[%clk
0:01:47.4]} 17. f3 {[%clk 0:02:06.1]} 17... Be7 {[%clk 0:01:45.2]} 18. Bd3
{[%clk 0:02:01.3]} 18... Nh5 {[%clk 0:01:45.1]} 19. e4 {[%clk 0:02:00.5]} 19...
Ng3 {[%clk 0:01:44.1]} 20. Kf2 {[%clk 0:01:53.4]} 20... Nf6 {[%clk 0:01:32.9]}
21. f5 {[%clk 0:01:46]} 21... gxf5 {[%clk 0:01:31]} 22. exf5 {[%clk 0:01:46.9]}
22... Kd7 {[%clk 0:01:30.2]} 23. Na4 {[%clk 0:01:33.4]} 23... Rcg8 {[%clk
0:01:26.4]} 24. Nb6+ {[%clk 0:01:31.4]} 24... Kd8 {[%clk 0:01:22.1]} 25. fxe6
{[%clk 0:01:14.7]} 25... fxe6 {[%clk 0:01:22.1]} 26. Rge1 {[%clk 0:01:10.9]}
26... Nfh5 {[%clk 0:01:21.4]} 27. Bxa6 {[%clk 0:00:57.7]} 27... bxa6 {[%clk
0:01:19.6]} 28. Rxa6 {[%clk 0:00:58.6]} 28... Nf4 {[%clk 0:01:17.6]} 29. Ra8+
{[%clk 0:00:53.8]} 29... Kc7 {[%clk 0:01:14.4]} 30. Ra7+ {[%clk 0:00:54.3]}
30... Kb8 {[%clk 0:01:12.3]} 31. Rea1 {[%clk 0:00:54]} 31... Nxh3+ {[%clk
0:01:01.7]} 32. Ke1 {[%clk 0:00:52.7]} 32... Bd6 {[%clk 0:00:50.1]} 33. Ra8+
{[%clk 0:00:48.1]} 33... Kb7 {[%clk 0:00:49.8]} 34. R1a7# {[%clk 0:00:49]} 1-0